Cogmind - Beta 16 @@@ ROGUE MODE // 2026.01.23 @ 14:42:06 Player: Assis Result: Destroyed by 65-XO9(z) with Makeshift Sword Performance ------------- Evolutions (3) 1500 Regions Visited (11) 2200 Robots Destroyed (33) 165 Value Destroyed (1045) 1045 Prototype IDs (23) 460 Alien Tech Used (0) 0 Bonus (660) 660 TOTAL SCORE: 6030 Bonus ------- Follower Combat Kills 60 Aligned with FarCom 300 Met Imprinter 300 Cogmind --------- Core Integrity 0/700 Matter 300/300 Energy 93/100 System Corruption 6% Temperature Cool (0) Movement Core (200) Ox3 Location -7/Zion Parts ------- > --- POWER (2) -------- (None) > --- PROPULSION (3) --- (None) > --- UTILITY (6) ------ Medium Storage Unit Signal Interpreter Improved Terrain Scan Processor 0b10 Alert Chip > --- WEAPON (2) ------- (None) > --- INVENTORY (10) --- Machine Analyzer Improved Terrain Scanner Kinecellerator Improved Utility Shielding Improved Utility Shielding Improved Medium Armor Plating Layered Light Armor Plating Peak State ------------ > --- POWER ------------ Light Deuterium Engine Light Nuclear Core > --- PROPULSION ------- Carbon-fiber Leg VSS Leg Improved Carbon-fiber Leg > --- UTILITY ---------- Medium Storage Unit Machine Analyzer Signal Interpreter Improved Terrain Scanner Improved Terrain Scan Processor 0b10 Alert Chip > --- WEAPON ----------- Advanced Assault Cannon Advanced Assault Cannon > --- INVENTORY -------- Aluminum Leg Carbon-fiber Leg Machine Analyzer Improved Terrain Scanner Kinecellerator Improved Utility Shielding Improved Utility Shielding Improved Medium Armor Plating Improved Medium Armor Plating Advanced Assault Cannon [Rating: 44] Favorites ----------- Power Light Deuterium Engine Engine Light Deuterium Engine Power Core Light Nuclear Core Propulsion Aluminum Leg Leg Aluminum Leg Utility Improved Terrain Scanner Device Improved Terrain Scanner Storage Medium Storage Unit Processor 0b10 Alert Chip Protection Light Armor Plating Weapon Advanced Assault Cannon Energy Gun Small Laser Ballistic Gun Assault Rifle Ballistic Cannon Advanced Assault Cannon Build | -11 -10 -10 -10 -9 -8 -7 -7 -7 -7 -7 -7 ------- Run | Yrd Mat Min Exi Min Mat Fac Was Fac Low Low Zio Slots Evolved 6 | . . . . . 4 2 . . . . . Power 1 | . . . . . . 1 . . . . . Propulsion 1 | . . . . . 1 . . . . . . Utility 4 | . . . . . 3 1 . . . . . Weapon . | . . . . . . . . . . . . Parts Attached 36 | 8 3 . 1 1 14 2 . 1 1 3 2 Power 8 | 2 . . . 1 3 . . . . 1 1 Engine 6 | 2 . . . 1 1 . . . . 1 1 Core 2 | . . . . . 2 . . . . . . Reactor . | . . . . . . . . . . . . Propulsion 8 | 2 . . . . 3 1 . 1 . 1 . Treads . | . . . . . . . . . . . . Leg 8 | 2 . . . . 3 1 . 1 . 1 . Wheel . | . . . . . . . . . . . . Hover . | . . . . . . . . . . . . Flight . | . . . . . . . . . . . . Utility 12 | 2 1 . 1 . 5 1 . . 1 . 1 Device 2 | 1 . . . . . 1 . . . . . Storage 3 | 1 1 . 1 . . . . . . . . Processor 4 | . . . . . 3 . . . 1 . . Hackware . | . . . . . . . . . . . . Protection 3 | . . . . . 2 . . . . . 1 Artifact . | . . . . . . . . . . . . Weapon 8 | 2 2 . . . 3 . . . . 1 . Energy Gun 1 | 1 . . . . . . . . . . . Energy Cannon . | . . . . . . . . . . . . Ballistic Gun 1 | 1 . . . . . . . . . . . Ballistic Cannon 6 | . 2 . . . 3 . . . . 1 . Launcher . | . . . . . . . . . . . . Special Weapon . | . . . . . . . . . . . . Impact Weapon . | . . . . . . . . . . . . Slashing Weapon . | . . . . . . . . . . . . Piercing Weapon . | . . . . . . . . . . . . Special Melee Weapon . | . . . . . . . . . . . . Unidentified Prototypes . | . . . . . . . . . . . . Parts Lost 16 | . . . . 1 1 . . 2 . . 12 Power 4 | . . . . 1 . . . 1 . . 2 Propulsion 5 | . . . . . . . . . . . 5 Utility 4 | . . . . . . . . 1 . . 3 Weapon 3 | . . . . . 1 . . . . . 2 Highest Loss Streak 7 | . . . . 1 1 . . 1 . . 7 To Critical Strikes . | . . . . . . . . . . . . Average Backups 9 | 4 6 8 9 10 8 9 10 10 9 10 9 Power . | . . . . . 1 1 1 . . . . Propulsion 1 | 1 . . . . 1 2 2 2 2 2 1 Utility 6 | . 3 7 7 8 5 5 6 6 6 7 7 Weapon 1 | 1 1 1 1 2 1 1 1 1 1 . . Tool/Special . | . . . . . . . . . . . . Unused Backups 16 | . 3 . . . 3 1 . . 3 . 6 Power . | . . . . . . . . . . . . Propulsion 2 | . 2 . . . . . . . . . . Utility 13 | . . . . . 3 1 . . 3 . 6 Weapon 1 | . 1 . . . . . . . . . . Tool/Special . | . . . . . . . . . . . . Average Slot Usage (%) 92 | . 100 100 87 84 97 91 92 93 92 97 93 Engine 8 | . 14 14 14 13 3 7 7 6 . 5 6 Core 2 | . . . . . 5 . . 1 7 7 5 Leg 24 | . 28 28 28 28 25 23 23 22 23 23 21 Device 9 | . 14 14 14 14 5 6 7 7 7 7 5 Storage 9 | . 14 14 14 14 9 7 7 7 7 7 7 Processor 16 | . . . . . 26 23 23 23 30 30 29 Protection 2 | . . . . . 3 7 7 6 . . . Ballistic Cannon 15 | . 18 28 16 14 15 15 15 15 15 15 13 Peak Build Rating 44 | 9 10 10 10 9 32 37 37 40 40 44 44 Average Rating 26 | 5 9 10 9 8 26 36 37 37 39 42 41 On Entrance 22 | . 9 10 10 9 9 32 37 37 36 40 44 Avg Prop Armor Cover (%) . | . . . . . . . . . . . . Naked Turns . | . . . . . . . . . . . . Heaviest Build 40 | 14 32 17 22 19 40 31 31 36 28 33 36 Greatest Support 48 | 20 20 20 20 20 40 47 47 47 44 45 48 Greatest Overweight (x) 3 | 1 1 . 1 . . . . . . . 3 Average Overweight (x) . | . . . . . . . . . . . . Largest Inventory Capacity 15 | 8 15 8 10 10 15 10 10 10 10 10 10 Average Capacity 9 | 7 8 8 9 10 10 10 10 10 10 10 10 Most Carried 12 | 8 8 8 10 10 12 10 10 10 10 10 10 Average Carried 9 | 4 6 8 9 10 8 9 10 9 9 9 9 Final Capacity 10 | 8 8 8 10 10 10 10 10 10 10 10 10 Final Carried 10 | 5 8 8 10 10 9 10 10 10 10 10 7 Class Distribution -------------------- 41% | Mutant 30% | Scavenger-Skirmisher 27% | Skirmisher Dominant Class ---------------- Mutant | -10/Materials Mutant | -10/Mines Mutant | -10/Exiles Mutant | -9/Mines Scavenger-Skirmisher | -8/Materials Scavenger-Skirmisher | -7/Factory Scavenger-Skirmisher | -7/Waste Scavenger-Skirmisher | -7/Factory Skirmisher | -7/Lower Caves Skirmisher | -7/Lower Caves Skirmisher | -7/Zion Resources | -11 -10 -10 -10 -9 -8 -7 -7 -7 -7 -7 -7 ----------- Run | Yrd Mat Min Exi Min Mat Fac Was Fac Low Low Zio Matter Collected 1634 | 313 109 31 . 49 524 10 . 35 30 310 223 Remotely . | . . . . . . . . . . . . Salvage Created 865 | 27 172 50 . 18 384 22 . 61 . . 131 Parts 62 | 4 11 5 . 4 31 2 . 3 . . 2 Haulers Intercepted . | . . . . . . . . . . . . Recyclers Shooed . | . . . . . . . . . . . . Parts Field Recycled . | . . . . . . . . . . . . Retrieved Matter . | . . . . . . . . . . . . Parts Self-Destructed . | . . . . . . . . . . . . Prevented . | . . . . . . . . . . . . Parts Restored . | . . . . . . . . . . . . Kills | -11 -10 -10 -10 -9 -8 -7 -7 -7 -7 -7 -7 ------- Run | Yrd Mat Min Exi Min Mat Fac Was Fac Low Low Zio Combat Hostiles Destroyed 27 | . 2 . . 4 12 1 . 4 . . 4 Guns 1 | . . . . . 1 . . . . . . Cannons 26 | . 2 . . 4 11 1 . 4 . . 4 Classes Destroyed 11 | 1 3 1 . 1 3 1 . . . . 1 Worker 1 | . . 1 . . . . . . . . . Tunneler 1 | 1 . . . . . . . . . . . Recycler 2 | . 1 1 . . . . . . . . . Mechanic 1 | . 1 . . . . . . . . . . Watcher 1 | . . . . . 1 . . . . . . Swarmer 11 | . . . . 4 4 . . 3 . . . Grunt 6 | . 2 . . . 4 . . . . . . Sentry 2 | . . . . . 2 . . . . . . Hunter 2 | . . . . . 2 . . . . . . Programmer 2 | . . . . . . 1 . 1 . . . Mutant 4 | . . . . . . . . . . . 4 Best Kill Streak 5 | 1 2 2 . 4 5 1 . 3 . . 2 Combat Bots Only 5 | . 2 . . 4 5 1 . 3 . . 2 Max Kills in Single Turn 1 | 1 1 1 . 1 1 1 . 1 . . 1 Gunslinging . | . . . . . . . . . . . . Exploded . | . . . . . . . . . . . . Melee . | . . . . . . . . . . . . Uniques/NPCs Destroyed . | . . . . . . . . . . . . Combat | -11 -10 -10 -10 -9 -8 -7 -7 -7 -7 -7 -7 -------- Run | Yrd Mat Min Exi Min Mat Fac Was Fac Low Low Zio Hostile Shots Fired 400 | . 5 . . 37 72 12 . 84 . . 190 Missed 137 | . . . . 8 19 4 . 40 . . 66 Hits 263 | . 5 . . 29 53 8 . 44 . . 124 Melee 15 | . . . . . . . . . . . 15 Projectile 248 | . 5 . . 29 53 8 . 44 . . 109 AOE 1 | . . . . . . . . . . . 1 Critical Strikes 10 | . . . . . 1 . . 5 . . 4 Part Disruptions 2 | . . . . . . . . . . . 2 Damage Taken 3257 | . 51 . . 227 484 116 . 535 . . 1844 Core 907 | . . . . 45 141 16 . 62 . . 643 Absorbed by Shields . | . . . . . . . . . . . . Regen/Repaired (Parts) 88 | . . . . . 49 . . 39 . . . Core Remaining (%) 85 | 100 . . . 82 74 . . . . . . Volleys Fired 126 | 6 6 4 . 30 35 5 . 15 . . 25 Largest 2 | 2 2 2 . 1 2 2 . 2 . . 2 Hottest 80 | 60 60 60 . 30 80 80 . 80 . . 80 Shots Fired 207 | 12 12 8 . 30 70 10 . 31 . . 34 Gun 26 | 12 4 . . . 10 . . . . . . Cannon 181 | . 8 8 . 30 60 10 . 31 . . 34 Launcher . | . . . . . . . . . . . . Special . | . . . . . . . . . . . . Kinetic 201 | 6 12 8 . 30 70 10 . 31 . . 34 Thermal 6 | 6 . . . . . . . . . . . Explosive . | . . . . . . . . . . . . Electromagnetic . | . . . . . . . . . . . . Robot Hit Streak 12 | 2 5 4 . 4 12 1 . 5 . . 11 Robot Miss Streak 5 | 3 1 1 . 4 3 2 . 5 . . 1 Penetration Max . | . . . . . . . . . . . . Secondary Targets . | . . . . . . . . . . . . Shots Hit Robots 113 | 5 8 6 . 11 39 4 . 12 . . 28 Core Hits 49 | 1 4 2 . 4 22 1 . 4 . . 11 Critical Kills . | . . . . . . . . . . . . Critical Parts Destroyed . | . . . . . . . . . . . . Critical Strikes 3 | . 1 1 . . . . . . . . 1 Blast 3 | . 1 1 . . . . . . . . 1 Melee Attacks . | . . . . . . . . . . . . Impact . | . . . . . . . . . . . . Slashing . | . . . . . . . . . . . . Piercing . | . . . . . . . . . . . . Sneak Attacks . | . . . . . . . . . . . . Combat Hostiles . | . . . . . . . . . . . . Follow-up Attacks . | . . . . . . . . . . . . Damage Inflicted 2378 | 71 139 114 . 199 615 131 . 333 . . 776 Guns 138 | 71 26 . . . 41 . . . . . . Cannons 2229 | . 106 114 . 195 574 131 . 333 . . 776 Explosions . | . . . . . . . . . . . . Melee . | . . . . . . . . . . . . Ramming 11 | . 7 . . 4 . . . . . . . Kinetic 2345 | 49 132 114 . 195 615 131 . 333 . . 776 Thermal 22 | 22 . . . . . . . . . . . Explosive . | . . . . . . . . . . . . Electromagnetic . | . . . . . . . . . . . . Impact . | . . . . . . . . . . . . Slashing . | . . . . . . . . . . . . Piercing . | . . . . . . . . . . . . Highest Corruption 6 | . . . . . . 1 1 4 4 4 6 Average Corruption 2 | . . . . . . 1 1 1 4 4 4 Corruption Purged . | . . . . . . . . . . . . Corruption Blocked . | . . . . . . . . . . . . Effects 41 | . . . . . . . 1 3 11 16 10 Message Errors 10 | . . . . . . . . . 3 3 4 Matter Fused 7 | . . . . . . . . . 1 5 1 Heat Flow Errors 6 | . . . . . . . . 1 1 2 2 Energy Discharges 7 | . . . . . . . . . 1 4 2 Parts Rejected 1 | . . . . . . . . . . . 1 Parts Fused 1 | . . . . . . . . . . 1 . Data Loss (minor) 6 | . . . . . . . 1 1 3 1 . Data Loss (major) 1 | . . . . . . . . . 1 . . Misfires 1 | . . . . . . . . 1 . . . Alerts 1 | . . . . . . . . . 1 . . Overload Shots . | . . . . . . . . . . . . Overflow Damage 40 | . . . . . . . . . . . 40 Projectiles 40 | . . . . . . . . . . . 40 Explosions . | . . . . . . . . . . . . Melee . | . . . . . . . . . . . . Knockbacks 18 | . . 2 . 2 5 1 . 6 . . 2 Impact . | . . . . . . . . . . . . Kinetic 18 | . . 2 . 2 5 1 . 6 . . 2 Secondary . | . . . . . . . . . . . . Self-Inflicted Damage . | . . . . . . . . . . . . Shots . | . . . . . . . . . . . . Rammed . | . . . . . . . . . . . . Targets Rammed 3 | . 1 . . 2 . . . . . . . Kicked 3 | . 1 . . 2 . . . . . . . Crushed . | . . . . . . . . . . . . Highest Temperature 253 | . 8 . . . 30 12 . 232 191 243 253 Average Temperature 60 | . 6 . . . 12 5 . 47 101 106 103 Received Heat Transfer 453 | . 30 . . . 99 . . 42 . . 282 Siege Activations . | . . . . . . . . . . . . Martial Activations . | . . . . . . . . . . . . Shielding Activations . | . . . . . . . . . . . . Robots Disrupted . | . . . . . . . . . . . . Combat Hostiles . | . . . . . . . . . . . . Robots Corrupted . | . . . . . . . . . . . . Combat Hostiles . | . . . . . . . . . . . . Parts Fried . | . . . . . . . . . . . . Impact Corruptions . | . . . . . . . . . . . . Robots Melted . | . . . . . . . . . . . . Combat Hostiles . | . . . . . . . . . . . . Parts Melted . | . . . . . . . . . . . . Heat Transferred 50 | 50 . . . . . . . . . . . Parts Sabotaged . | . . . . . . . . . . . . Parts Stolen . | . . . . . . . . . . . . Parts Stripped . | . . . . . . . . . . . . Power Chain Reactions . | . . . . . . . . . . . . Alert | -11 -10 -10 -10 -9 -8 -7 -7 -7 -7 -7 -7 ------- Run | Yrd Mat Min Exi Min Mat Fac Was Fac Low Low Zio Maximum Alert Level . | . . . . . . . . . . . . Low Security (%) 100 | 100 100 100 . 100 100 100 100 100 . . . Level 1 . | . . . . . . . . . . . . Level 2 . | . . . . . . . . . . . . Level 3 . | . . . . . . . . . . . . Level 4 . | . . . . . . . . . . . . Level 5 . | . . . . . . . . . . . . High Security . | . . . . . . . . . . . . Max Security . | . . . . . . . . . . . . Peak Influence 160 | 5 40 56 . 135 160 27 . 50 . . . Initial 6 | . . . . . 6 . . . . . . Average 18 | . 3 14 . 45 54 1 . 4 . . . Influence Increases 736 | 5 50 66 . 165 324 31 . 95 . . . Destroy 0b10 Robot/C 432 | . 40 40 . 80 192 16 . 64 . . . Destroy 0b10 Robot/NC 29 | 5 10 10 . . 4 . . . . . . Destroy Leader 102 | . . 10 . 10 58 8 . 16 . . . Allied During Kill 6 | . . 6 . . . . . . . . . Successful Hack 11 | . . . . . 2 4 . 5 . . . Disable Machine 12 | . . . . . 12 . . . . . . Destroy Structure 21 | . . . . . 8 3 . 10 . . . Partial Spotted 12 | . . . . . 12 . . . . . . Lose Combat Pursuer 111 | . . . . 75 36 . . . . . . Influence Decreases 736 | 5 50 66 . 148 341 31 . 86 9 . . Entered New Map 15 | . . . . . 11 . . . 4 . . Time Decay 681 | 5 50 66 . 138 320 31 . 66 5 . . Lost Part 40 | . . . . 10 10 . . 20 . . . Squads Dispatched 11 | . 1 . . . 4 2 . 4 . . . Investigation 1 | . . . . . 1 . . . . . . Extermination 4 | . . . . . . 2 . 2 . . . Reinforcement 2 | . 1 . . . . . . 1 . . . Assault . | . . . . . . . . . . . . Garrison 4 | . . . . . 3 . . 1 . . . Intercept . | . . . . . . . . . . . . Searches Triggered . | . . . . . . . . . . . . Construction Impeded 1 | . . . . . . . . 1 . . . Haulers Reinforced . | . . . . . . . . . . . . Active Scanning Responses . | . . . . . . . . . . . . Cargo Convoy Interrupts . | . . . . . . . . . . . . Stealth | -11 -10 -10 -10 -9 -8 -7 -7 -7 -7 -7 -7 --------- Run | Yrd Mat Min Exi Min Mat Fac Was Fac Low Low Zio Distress Signals 2 | . . . . . 2 . . . . . . Communications Jammed . | . . . . . . . . . . . . Distress Signals . | . . . . . . . . . . . . Times Spotted 67 | . 7 2 . 6 21 1 . 10 . . 20 Peak Tracking Total 16 | . 3 2 . 4 5 1 . 4 . . 16 Tactical Retreats 5 | . . . . 2 1 . . . . . 2 Traps | -11 -10 -10 -10 -9 -8 -7 -7 -7 -7 -7 -7 ------- Run | Yrd Mat Min Exi Min Mat Fac Was Fac Low Low Zio Traps Triggered 5 | . . . . . 3 2 . . . . . Indirectly . | . . . . . . . . . . . . Trap Hack Attempts . | . . . . . . . . . . . . Triggered . | . . . . . . . . . . . . Disarmed . | . . . . . . . . . . . . Reprogrammed . | . . . . . . . . . . . . Reused . | . . . . . . . . . . . . Traps Extracted . | . . . . . . . . . . . . Installed . | . . . . . . . . . . . . Triggered . | . . . . . . . . . . . . Machines | -11 -10 -10 -10 -9 -8 -7 -7 -7 -7 -7 -7 ---------- Run | Yrd Mat Min Exi Min Mat Fac Was Fac Low Low Zio Machines Disabled 3 | . . . . . 1 . . . . . 2 Max in Single Turn 1 | . . . . . 1 . . . . . 1 Machines Repaired . | . . . . . . . . . . . . Machines Dismantled . | . . . . . . . . . . . . Machines Sabotaged . | . . . . . . . . . . . . Overloaded Fab Kills . | . . . . . . . . . . . . Hacking | -11 -10 -10 -10 -9 -8 -7 -7 -7 -7 -7 -7 --------- Run | Yrd Mat Min Exi Min Mat Fac Was Fac Low Low Zio Machines Accessed 18 | . 1 . 5 . 3 4 . 2 1 2 . Terminals 4 | . 1 . . . . 2 . . . 1 . Fabricators 1 | . . . . . . 1 . . . . . Repair Stations 3 | . . . . . 1 1 . 1 . . . Recycling Units 1 | . . . . . . . . 1 . . . Scanalyzers 1 | . . . . . 1 . . . . . . Garrison Access 1 | . . . . . 1 . . . . . . Total Hacks 66 | . 2 . 43 . 8 7 . 3 1 2 . Successful 59 | . 1 . 43 . 5 4 . 3 1 2 . Failed 7 | . 1 . . . 3 3 . . . . . Catastrophic 1 | . . . . . 1 . . . . . . Database Lockouts . | . . . . . . . . . . . . Manual 17 | . 2 . 10 . . 4 . . . 1 . Terminals 8 | . 2 . . . . 5 . . . 1 . Fabricators 1 | . . . . . . 1 . . . . . Repair Stations 8 | . . . . . 5 1 . 2 . . . Recycling Units 1 | . . . . . . . . 1 . . . Scanalyzers 2 | . . . . . 2 . . . . . . Garrison Access 1 | . . . . . 1 . . . . . . Terminal Hacks 50 | . 1 . 43 . . 3 . . 1 2 . Record 44 | . . . 42 . . 1 . . . 1 . Open Door 2 | . . . . . . . . . 1 1 . Open DSF 1 | . . . . . . 1 . . . . . Locate Traps 1 | . 1 . . . . . . . . . . Zone Layout 1 | . . . . . . 1 . . . . . Proto ID Catalog 1 | . . . 1 . . . . . . . . Fabricator Hacks 1 | . . . . . . 1 . . . . . Network Status 1 | . . . . . . 1 . . . . . Repair Station Hacks 5 | . . . . . 3 . . 2 . . . Scan Component 3 | . . . . . 2 . . 1 . . . Repair 2 | . . . . . 1 . . 1 . . . Recycling Unit Hacks 1 | . . . . . . . . 1 . . . Report Inventory 1 | . . . . . . . . 1 . . . Scanalyzer 2 | . . . . . 2 . . . . . . Insert Component 1 | . . . . . 1 . . . . . . Analyze 1 | . . . . . 1 . . . . . . Garrison Access Hacks . | . . . . . . . . . . . . Unauthorized Hacks . | . . . . . . . . . . . . Terminals . | . . . . . . . . . . . . Fabricators . | . . . . . . . . . . . . Repair Stations . | . . . . . . . . . . . . Recycling Units . | . . . . . . . . . . . . Scanalyzers . | . . . . . . . . . . . . Garrison Access . | . . . . . . . . . . . . Data Cores Recovered . | . . . . . . . . . . . . Used . | . . . . . . . . . . . . Hacking Detections 6 | . 1 . . . 2 1 . 1 . 1 . Full Trace Events 1 | . . . . . 1 . . . . . . Feedback Events . | . . . . . . . . . . . . Feedback Blocked . | . . . . . . . . . . . . Robot Schematics Acquired 2 | . . . . . . . . . . . 2 Robots Built . | . . . . . . . . . . . . Authchips . | . . . . . . . . . . . . Time . | . . . . . . . . . . . . Total Robot Build Rating . | . . . . . . . . . . . . Part Schematics Acquired 16 | . . . . . 1 . . . . . 15 Parts Built . | . . . . . . . . . . . . Authchips . | . . . . . . . . . . . . Time . | . . . . . . . . . . . . Total Part Build Rating . | . . . . . . . . . . . . Part Studies Acquired . | . . . . . . . . . . . . Parts Repaired 2 | . . . . . 1 . . 1 . . . Time 64 | . . . . . 26 . . 38 . . . Parts Recycled . | . . . . . . . . . . . . Recycled Matter . | . . . . . . . . . . . . Retrieved Matter . | . . . . . . . . . . . . Retrieved Components . | . . . . . . . . . . . . Parts Scanalyzed 1 | . . . . . 1 . . . . . . Part Schematics Acquired 1 | . . . . . 1 . . . . . . Parts Damaged . | . . . . . . . . . . . . Bothacking | -11 -10 -10 -10 -9 -8 -7 -7 -7 -7 -7 -7 ------------ Run | Yrd Mat Min Exi Min Mat Fac Was Fac Low Low Zio Used RIF Installer . | . . . . . . . . . . . . Robots Hacked . | . . . . . . . . . . . . Non-combat . | . . . . . . . . . . . . Combat . | . . . . . . . . . . . . Robot Hacks Applied . | . . . . . . . . . . . . Relay Couplers Released . | . . . . . . . . . . . . Fabnet Peak Effective % . | . . . . . . . . . . . . Robots Rewired . | . . . . . . . . . . . . Allies Hacked . | . . . . . . . . . . . . Hacks Repelled . | . . . . . . . . . . . . Allies | -11 -10 -10 -10 -9 -8 -7 -7 -7 -7 -7 -7 -------- Run | Yrd Mat Min Exi Min Mat Fac Was Fac Low Low Zio Total Allies 2 | . . 2 . . . . . . . . . Largest Group 2 | . . 2 1 . . . . . . . . Highest-Rated Group 41 | . . 41 31 . . . . . . . . Highest-Rated Ally 31 | . . 31 31 . . . . . . . . Total Orders . | . . . . . . . . . . . . Ally Attacks 7 | . . 7 . . . . . . . . . Total Damage 151 | . . 151 . . . . . . . . . Kills 2 | . . 2 . . . . . . . . . Allies Corrupted . | . . . . . . . . . . . . Allies Melted . | . . . . . . . . . . . . Intel | -11 -10 -10 -10 -9 -8 -7 -7 -7 -7 -7 -7 ------- Run | Yrd Mat Min Exi Min Mat Fac Was Fac Low Low Zio Active Infowar (turns) 7699 | 89 558 263 1515 506 823 884 101 744 472 712 1032 Terrain 7158 | 89 558 263 1515 506 456 881 101 744 472 712 861 Machine Analysis 4764 | . . . . . 819 884 101 744 472 712 1032 Robot Analysis Total . | . . . . . . . . . . . . Derelict Logs Recovered 3 | . . . . 1 . . . . . 2 . Drone Launches . | . . . . . . . . . . . . Drone Recoveries . | . . . . . . . . . . . . Exploration | -11 -10 -10 -10 -9 -8 -7 -7 -7 -7 -7 -7 ------------- Run | Yrd Mat Min Exi Min Mat Fac Was Fac Low Low Zio Turns Passed 7903 | 272 558 263 1515 506 823 884 101 744 472 712 1053 Spaces Moved 5743 | 206 343 194 1257 317 484 559 83 444 378 624 854 Core 76 | 63 . . . . . . . . . . 13 Treads . | . . . . . . . . . . . . Legs 5667 | 143 343 194 1257 317 484 559 83 444 378 624 841 Wheels . | . . . . . . . . . . . . Hover . | . . . . . . . . . . . . Flight . | . . . . . . . . . . . . Fastest Speed 50 | 50 120 120 120 120 120 120 123 113 113 110 110 Average Speed 116 | 101 122 120 120 120 120 121 123 113 113 110 114 Slowest Speed 260 | 120 190 120 190 120 120 123 123 123 113 113 260 Overloaded Moves . | . . . . . . . . . . . . Propulsion Burnouts . | . . . . . . . . . . . . Robots Hopped . | . . . . . . . . . . . . Potential Cave-ins . | . . . . . . . . . . . . Cave-ins Triggered . | . . . . . . . . . . . . Exploration Rate (%) 46 | 9 48 43 94 50 27 14 68 12 57 56 79 Regions Visited 11 Branch Regions 6 Pre-discovered Areas 2 | . . . 1 . . . . . . . 1 Known Exits Taken 4 | . . . . . 1 . . 1 1 1 . Unknown Exits Taken 5 | 1 1 1 1 1 . . . . . . . Scrap Searched 9 | . . . . 1 . . . . 1 3 4 Spaces Dug 1 | . . . . . . . . 1 . . . Terrain Destroyed 17 | . . . . . 5 3 . 9 . . . Melee . | . . . . . . . . . . . . Projectile 17 | . . . . . 5 3 . 9 . . . AOE . | . . . . . . . . . . . . Terrain Rammed . | . . . . . . . . . . . . Walls Destroyed . | . . . . . . . . . . . . Machines Disabled . | . . . . . . . . . . . . Actions | -11 -10 -10 -10 -9 -8 -7 -7 -7 -7 -7 -7 --------- Run | Yrd Mat Min Exi Min Mat Fac Was Fac Low Low Zio Total 6724 | 257 470 216 1263 411 656 754 82 653 424 644 894 Wait 732 | 20 103 19 . 62 97 176 . 190 39 15 11 Move 5733 | 205 342 193 1256 316 483 559 82 443 377 623 854 Hop . | . . . . . . . . . . . . Pick Up 39 | 12 7 . 1 . 9 4 . 1 4 1 . Fast Attach 9 | 1 . . . 1 4 . . 1 . 1 1 Attach 22 | 8 . . . . 8 1 . 1 1 . 3 Detach 5 | 2 . . 1 . 2 . . . . . . Swap 20 | 2 5 . 1 . 8 1 . 1 . 2 . Drop 27 | 1 6 . 1 . 10 3 . 1 3 2 . Fire 126 | 6 6 4 . 30 35 5 . 15 . . 25 Melee . | . . . . . . . . . . . . Ram . | . . . . . . . . . . . . Kick 3 | . 1 . . 2 . . . . . . . Crush . | . . . . . . . . . . . . Escape Stasis 5 | . . . . . . 5 . . . . . Rewire 3 | . . . 3 . . . . . . . . Trap . | . . . . . . . . . . . . Miscellaneous . | . . . . . . . . . . . . Route ------- -11/Scrapyard -10/Materials (discovered 3 exits: [*Mat] / [*Min x2]) -10/Mines -10/Exiles (discovered 2 exits: [*Min x2]) -9/Mines -8/Materials -7/Factory -7/Waste -7/Factory -7/Lower Caves -7/Lower Caves (discovered 2 exits: Fac / *Zio) -7/Zion (discovered 1 exit: *Pro) History --------- Turn | Location | Event 3 | -11/Scrapyard | Discovered new exit (range 15) 273 | -11/Scrapyard | Entered Materials 312 | -10/Materials | Build established: Mutant 520 | -10/Materials | Discovered new exit (range 16) 715 | -10/Materials | Discovered new exit (range 7) 812 | -10/Materials | Discovered new exit (range 6) 831 | -10/Materials | Entered Mines 849 | -10/Mines | Received a Rocket Launcher from a helpful Derelict 974 | -10/Mines | A weapon hastily lodged in a ceiling crevice suddenly fell to the ground 1083 | -10/Mines | Deemed a non-threat by the Exiles lab entrance 1084 | -10/Mines | Discovered new exit (range 5) 1094 | -10/Mines | Entered Exiles 1094 | -10/Exiles | Accompanied by 1 ally 1124 | -10/Exiles | Led the pair of lost Derelicts to a safe place 1135 | -10/Exiles | Discovered new exit (range 15) 1170 | -10/Exiles | Met 8R-AWN 1205 | -10/Exiles | Met EX-HEX 1343 | -10/Exiles | Met EX-DEC 1388 | -10/Exiles | Learned location of Zion (-7) 1438 | -10/Exiles | Met EX-BIN 1483 | -10/Exiles | Aligned with FarCom system 1484 | -10/Exiles | Given EX-Vault access code 1758 | -10/Exiles | Opened EX-Vault 1770 | -10/Exiles | Found Prototype Processor 1773 | -10/Exiles | Identified 0b10 Alert Chip 1805 | -10/Exiles | Warned to stay clear of 0b10 Research branches 1925 | -10/Exiles | Discovered new exit (range 14) 2032 | -10/Exiles | Visited The Gauntlet 2609 | -10/Exiles | Left Exiles lab with 0b10 Alert Chip 2609 | -10/Exiles | Entered Mines 2625 | -9/Mines | Learned 4 Materials zone layouts 3033 | -9/Mines | Excavation squad dispatched 3033 | -9/Mines | A large section of the Mines collapsed 3095 | -9/Mines | Discovered new exit (range 11) 3115 | -9/Mines | Entered Materials 3115 | -8/Materials | Evolved 4 slots: Propulsion x1, Utility x3 3116 | -8/Materials | Identified exit to Factory 3169 | -8/Materials | Repaired Aluminum Leg 3241 | -8/Materials | Garrison activated, responded to threat 3545 | -8/Materials | Build established: Scavenger-Skirmisher 3938 | -8/Materials | Entered Factory 3938 | -7/Factory | Evolved 2 slots: Power x1, Utility x1 4154 | -7/Factory | Identified exit to DSF 4822 | -7/Factory | Sucked down chute 4822 | -7/Factory | Entered Waste 4822 | -7/Waste | The area was eerily silent 4906 | -7/Waste | Discovered new exit (range 12) 4922 | -7/Waste | Identified exit to Factory 4923 | -7/Waste | Entered Factory 5133 | -7/Factory | Repaired Carbon-fiber Leg 5162 | -7/Factory | Garrison activated, responded to threat 5652 | -7/Factory | Discovered new exit (range 14) 5666 | -7/Factory | Identified exit to Lower Caves 5667 | -7/Factory | Entered Lower Caves 5954 | -7/Lower Caves | Build established: Skirmisher 6066 | -7/Lower Caves | Discovered new exit (range 11) 6138 | -7/Lower Caves | Identified exit to Lower Caves 6139 | -7/Lower Caves | Entered another Lower Caves area 6319 | -7/Lower Caves | Found DCF Scrap (14 items) 6464 | -7/Lower Caves | Identified exit to Factory 6822 | -7/Lower Caves | Learned location of 1 exit from Proximity Caves 6841 | -7/Lower Caves | Discovered new exit (range 10) 6850 | -7/Lower Caves | Identified exit to Zion 6851 | -7/Lower Caves | Entered Zion 7020 | -7/Zion | Discovered new exit (range 16) 7037 | -7/Zion | Identified exit to Proximity Caves 7077 | -7/Zion | System corruption cleaned by Quarantine Array 7306 | -7/Zion | Learned Factory terminal intel 7380 | -7/Zion | Learned location of Storage (-7) 7669 | -7/Zion | Rebuked by Imprinter 7695 | -7/Zion | Attempted to imprint without authorization 7695 | -7/Zion | Attacked by Zionites 7786 | -7/Zion | Lost 5 parts (2p1n1u1w) 7849 | -7/Zion | Core integrity fell below 50% 7888 | -7/Zion | Core integrity fell below 20% 7904 | -7/Zion | Destroyed by 65-XO9(z) with Makeshift Sword Last Messages --------------- 07876_ PV-BOS(z) overheating. 07877_ PV-BOS(z) heat short circuits Imp. Deuterium Engine. 07879_ LG-BTK(z) pulls a Mak. Axe out of the Twisted Machinery. 07880_ Aluminum Leg destroyed. 07881_ BR-U3U(z) pulls a Mak. Laser out of the Twisted Machinery. 07882_ 61-7HH(z) pulls a Mak. Hammer out of the Twisted Machinery. 07883_ Machine Analyzer destroyed. 07885_ PV-BOS(z) heat damages Mak. Laser. 07895_ 65-XO9(z) pulls a Mak. Sword out of the Twisted Machinery. 07897_ 0S-EZD(z) pulls a Mak. Shrapnel Gun out of the Twisted Machinery. 07899_ System corrupted: Energy discharge (-29). 07899_ 5C-LWF(z) destroyed. 07900_ BR-U3U(z) heat damages core (-3). 07901_ BR-U3U(z) overheating. Map ----- +----------------------------------------------------+ | ??????####"" "#"""" " """##???#?#??????????? | | #?##??#?#""" ###""" " """##?#??#??????????? | | "??#????"" "#"" " "####?#?#????#?????? | | ?"""???#"" """ " ""#?#??#????#????##?? | | ?? ??"#"" ""##?????????#?###??# | | "?? $ ?#""" ""##??###?#?###?#???? | | ?"??# #"" " " " """##?#?#######????#? | | ????# ##" ""# " " """##?###?#??#??##??## | | #?#?#?# """""" " ""####?##?#?#??#?#?### | | ?#?????# """""" #"####?##?#?#???###"## | | #?####### """" ""#??#???########"##"# | | ###""##" """ ""##?#??#####""""#"""# | | """"""""" """ ""###?#?#"""""""#"" "" | | """"" """" ""#"###?#"""" """ " | | * """"" """#""###""" | | """"" """"""""""" | | """""""" """ % | | """""##"#"""" "" ]! | | """#"""""" """ | | ""####"" """" """"""""" """#" | | "###?#" "z""" """""""" """"""""" | | "###?#"" z"""" """""" "#"""#"#" | | ""#####"" /z""" z "" "#"####"# | | "#####"""" z=%Iz" "" ""####### | | %% ""#??##""""""" * zz zz ""####### | | % ""##??####"""" @ ""#######" | | ###????##""""" """# | | #?#?#?#?""" """ ""## ## # | | #"#?#?##"" """ ""#" ""#? # | | #"??#??#" """"" """"" """## """ | | #?##?###" """"" """"" """#??? """ | | ####"#??#?#"" "#"" "##""" ""##? ?""" | | ##??###???""" """"" "###""" ""##? ? | | """??####?"#"" """##"" ""####"" """#???## # | | ##"#?##?#??"""""" "#"###""""#??##" """??? | | #"#??#?#???"""""""#####""""#??"?"" "????#####"" | | #"###??#?????##""##?#??#"#???#?"#"""""??##????### | | #??"???#??????###?????????#???????#""#?##???????? | | "#"??#?#??????#???????##??##???????#"??????????#?? | | #?"?#"?#???????????????????????????#????????????? | | "#????#???????????####???????????????????????????# | | #"?"????????????????????????????????????????????? | | #"?????#????????????????????????????????????????? | | "#???????????????????????????????????????????????? | | #"??????????????????????????????????????????????? | | ??"?????????????????????????????????????????????? | | "?"??????????????????????????????????????????????? | | ??"??????????????????????????????????????????????? | | "?????#??????????????????????????????????????????? | | ?????????????????????????????????????????????????? | +----------------------------------------------------+ Best States ------------- Heat Dissipation 34 Energy Generation 23 Energy Capacity 300 Matter Stores 300 Matter Capacity 300 Sight Range 16 Terrain Scan Range 16 Terrain Scan Density 110 Armor Coverage 225 Evasion (%) 55 Item Schematics ----------------- Imp. Terrain Scan Processor | -8/Materials | Scanalyzed Hpw. Shock Rifle | -7/Zion | Archive Greatsword | -7/Zion | Archive Adv. Shield Generator | -7/Zion | Archive Gauss Rifle | -7/Zion | Archive Arm. Leg | -7/Zion | Archive Imp. Medium Armor Plating | -7/Zion | Archive Adv. Sensor Array | -7/Zion | Archive Core Analyzer | -7/Zion | Archive Thermal Shield | -7/Zion | Archive Powered Hammer | -7/Zion | Archive Adv. Cooling System | -7/Zion | Archive Hvy. Plasma Cannon | -7/Zion | Archive Remote Datajack | -7/Zion | Archive Plasma Cannon | -7/Zion | Archive Power Amplifier | -7/Zion | Archive Robot Schematics ------------------ T-07 Excavator | -7/Zion | Archive K-01 Serf | -7/Zion | Archive Fabricated ------------ Nothing Repaired ---------- Aluminum Leg | 45% | -8/Materials Carbon-fiber Leg | 64% | -7/Factory Studied --------- None Alien Tech Used ----------------- None Achievements -------------- For Emergencies Only I Have A Map? Omniscient Cartographer Organ Harvest Sixth Sense There's More Where That Came From We Love MA Challenges ------------ None Game ------ Seed BarrageBoreKatana Manual? 0 Play Time 01:47:16 Cumulative 19.7 hours Start 2026.01.23 @ 12:32:13 End 2026.01.23 @ 14:42:06 Sessions 1 Manual Loads 0 Difficulty Rogue Special Mode None Game No. 38 Rogue 38 Adventurer 0 Explorer 0 Win Type - Total 0 Types 0/0/0/0/0/0/0/0/0/0 Lore% 11 Gallery% 20 Achievement% 14 Wizard Run 0 Options --------- Layout 1 ASCII 0 Keyboard 1 Movement Arrows Keybinds 0 Fullscreen 1 Font 24/Smallcaps Map View 50x35 Zoom Use 48% Tactical HUD 1 Map Filters NONE Filters NONE Steam 1 RUN: e434fd05-102c-4d36-93d7-d91d375a1e49